[Event "World Women Teams Championship"]
[Site "Sitges, Spain"]
[Date "2021.09.28"]
[Round "3.5"]
[White "Sebag, Marie"]
[Black "Matnadze, Ana"]
[Result "1-0"]
[TimeControl "40+10"]
[WhiteElo "2401"]
[BlackElo "2349"]

1. e4 {[%clk 00:45:17]} {[%emt 00:00:02]} d5 {[%clk 00:45:18]} {[%emt
00:00:02]} 2. exd5 {[%clk 00:45:24]} {[%emt 00:00:03]} Qxd5 {[%clk 00:45:27]}
{[%emt 00:00:01]} 3. Nc3 {[%clk 00:45:31]} {[%emt 00:00:04]} Qd8 {[%clk
00:45:34]} {[%emt 00:00:02]} 4. d4 {[%clk 00:45:38]} {[%emt 00:00:03]} c6
{[%clk 00:45:43]} {[%emt 00:00:02]} 5. Bc4 {[%clk 00:41:54]} {[%emt 00:03:54]}
g6 {[%clk 00:44:57]} {[%emt 00:00:56]} 6. Nf3 {[%clk 00:41:36]} {[%emt
00:00:26]} Bg7 {[%clk 00:44:56]} {[%emt 00:00:12]} 7. Ne5 {[%clk 00:41:00]}
{[%emt 00:00:46]} e6 {[%clk 00:45:02]} {[%emt 00:00:04]} 8. Ne4 {[%clk
00:40:27]} {[%emt 00:00:43]} h6 {[%clk 00:41:40]} {[%emt 00:03:32]} 9. Bf4
{[%clk 00:34:39]} {[%emt 00:05:58]} Nf6 {[%clk 00:41:07]} {[%emt 00:00:43]} 10.
Nxf6+ {[%clk 00:34:21]} {[%emt 00:00:28]} Qxf6 {[%clk 00:41:02]} {[%emt
00:00:16]} 11. Qd2 {[%clk 00:33:11]} {[%emt 00:01:17]} Qe7 {[%clk 00:36:37]}
{[%emt 00:04:37]} 12. Bb3 {[%clk 00:29:16]} {[%emt 00:04:05]} b5 {[%clk
00:29:15]} {[%emt 00:07:32]} 13. O-O-O {[%clk 00:28:20]} {[%emt 00:01:07]} a5
{[%clk 00:28:32]} {[%emt 00:00:52]} 14. a3 {[%clk 00:26:55]} {[%emt 00:01:35]}
a4 {[%clk 00:23:17]} {[%emt 00:05:25]} 15. Ba2 {[%clk 00:27:03]} {[%emt
00:00:02]} g5 {[%clk 00:20:12]} {[%emt 00:03:16]} 16. Bg3 {[%clk 00:25:52]}
{[%emt 00:01:21]} h5 {[%clk 00:20:15]} {[%emt 00:00:07]} 17. h4 {[%clk
00:25:06]} {[%emt 00:00:56]} g4 {[%clk 00:17:48]} {[%emt 00:02:37]} 18. Kb1
{[%clk 00:22:26]} {[%emt 00:02:49]} O-O {[%clk 00:16:45]} {[%emt 00:01:14]} 19.
Qg5 {[%clk 00:15:38]} {[%emt 00:06:57]} Qb7 {[%clk 00:12:10]} {[%emt 00:04:45]}
20. Nd3 {[%clk 00:10:32]} {[%emt 00:05:17]} Nd7 {[%clk 00:09:54]} {[%emt
00:02:25]} 21. Bd6 {[%clk 00:08:20]} {[%emt 00:02:21]} Re8 {[%clk 00:09:04]}
{[%emt 00:01:02]} 22. Nf4 {[%clk 00:07:00]} {[%emt 00:01:29]} Nf6 {[%clk
00:07:58]} {[%emt 00:01:16]} 23. Nxh5 {[%clk 00:06:00]} {[%emt 00:01:11]} Nxh5
{[%clk 00:08:00]} {[%emt 00:00:08]} 24. Qxh5 {[%clk 00:06:09]} {[%emt
00:00:01]} c5 {[%clk 00:07:23]} {[%emt 00:00:46]} 25. Bxc5 {[%clk 00:05:16]}
{[%emt 00:01:03]} Bd7 {[%clk 00:05:13]} {[%emt 00:02:20]} 26. Qxg4 {[%clk
00:05:03]} {[%emt 00:00:24]} Bc6 {[%clk 00:04:45]} {[%emt 00:00:37]} 27. d5
{[%clk 00:03:10]} {[%emt 00:02:04]} Bxd5 {[%clk 00:01:51]} {[%emt 00:03:03]} 28.
Bxd5 {[%clk 00:03:16]} {[%emt 00:00:05]} exd5 {[%clk 00:01:59]} 29. Bd4 {[%clk
00:03:24]} {[%emt 00:00:02]} f6 {[%clk 00:01:04]} {[%emt 00:01:06]} 30. Bxf6
{[%clk 00:03:21]} {[%emt 00:00:13]} Rf8 {[%clk 00:00:36]} {[%emt 00:00:37]} 31.
Bxg7 {[%clk 00:02:48]} {[%emt 00:00:44]} Qxg7 {[%clk 00:00:45]} 32. Qxg7+
{[%clk 00:02:52]} {[%emt 00:00:06]} Kxg7 {[%clk 00:00:54]} 33. Rxd5 {[%clk
00:01:58]} {[%emt 00:01:04]} Rxf2 {[%clk 00:01:00]} {[%emt 00:00:04]} 34. Rxb5
{[%clk 00:02:06]} {[%emt 00:00:02]} Re8 {[%clk 00:00:57]} {[%emt 00:00:13]} 35.
g4 {[%clk 00:01:36]} {[%emt 00:00:40]} Ree2 {[%clk 00:01:03]} {[%emt 00:00:04]}
36. Rc1 {[%clk 00:01:39]} {[%emt 00:00:06]} Rh2 {[%clk 00:00:51]} {[%emt
00:00:22]} 37. h5 {[%clk 00:01:19]} {[%emt 00:00:30]} Kh6 {[%clk 00:00:49]}
{[%emt 00:00:11]} 38. Rb4 {[%clk 00:01:21]} {[%emt 00:00:08]} Kg5 {[%clk
00:00:43]} {[%emt 00:00:16]} 39. Rxa4 {[%clk 00:01:30]} {[%emt 00:00:02]} Reg2
{[%clk 00:00:51]} {[%emt 00:00:02]} 40. Rc4 {[%clk 00:01:33]} {[%emt 00:00:05]}
Re2 {[%clk 00:00:52]} {[%emt 00:00:11]} 41. a4 {[%clk 00:01:37]} {[%emt
00:00:06]} Re5 {[%clk 00:00:56]} {[%emt 00:00:06]} 42. b3 {[%clk 00:01:44]}
{[%emt 00:00:03]} Rd5 {[%clk 00:00:58]} {[%emt 00:00:07]} 43. Kb2 {[%clk
00:01:50]} {[%emt 00:00:03]} Re5 {[%clk 00:01:03]} {[%emt 00:00:06]} 44. Rf1
{[%clk 00:01:58]} {[%emt 00:00:02]} Ree2 {[%clk 00:01:07]} {[%emt 00:00:07]} 45.
Rf5+ {[%clk 00:02:06]} {[%emt 00:00:02]} Kh4 {[%clk 00:01:08]} {[%emt
00:00:08]} 46. h6 {[%clk 00:02:06]} {[%emt 00:00:11]} Kg3 {[%clk 00:01:15]}
{[%emt 00:00:03]} 47. Rh5 {[%emt 00:00:31]} Rxh5 {[%clk 00:00:30]} {[%emt
00:00:27]} 48. gxh5 {[%clk 00:02:22]} 1-0

[Event "World Women Teams Championship"]
[Site "Sitges, Spain"]
[Date "2021.09.28"]
[Round "3.7"]
[White "Benmesbah, Natacha"]
[Black "Eizaguerri Floris, Maria"]
[Result "0-1"]
[TimeControl "40+10"]
[WhiteElo "2193"]
[BlackElo "1811"]

1. e4 {[%clk 00:45:19]} c5 {[%clk 00:45:19]} {[%emt 00:00:02]} 2. Nf3 {[%clk
00:45:27]} {[%emt 00:00:02]} d6 {[%clk 00:45:26]} {[%emt 00:00:03]} 3. Bb5+
{[%clk 00:45:35]} {[%emt 00:00:02]} Nd7 {[%clk 00:45:32]} {[%emt 00:00:03]} 4.
d4 {[%clk 00:45:43]} {[%emt 00:00:02]} cxd4 {[%clk 00:45:38]} {[%emt 00:00:04]}
5. Qxd4 {[%clk 00:45:51]} {[%emt 00:00:03]} a6 {[%clk 00:45:44]} {[%emt
00:00:04]} 6. Bxd7+ {[%clk 00:45:59]} {[%emt 00:00:02]} Bxd7 {[%clk 00:45:52]}
{[%emt 00:00:02]} 7. c4 {[%clk 00:46:00]} {[%emt 00:00:09]} e5 {[%clk
00:44:58]} {[%emt 00:01:05]} 8. Qd3 {[%clk 00:46:07]} {[%emt 00:00:03]} b5
{[%clk 00:44:41]} {[%emt 00:00:27]} 9. Nc3 {[%clk 00:46:15]} {[%emt 00:00:02]}
bxc4 {[%clk 00:37:07]} {[%emt 00:07:45]} 10. Qxc4 {[%clk 00:46:23]} {[%emt
00:00:02]} Be6 {[%clk 00:36:10]} {[%emt 00:01:06]} 11. Qc6+ {[%clk 00:46:31]}
{[%emt 00:00:03]} Bd7 {[%clk 00:36:15]} {[%emt 00:00:05]} 12. Qc4 {[%clk
00:46:39]} {[%emt 00:00:02]} h6 {[%clk 00:33:35]} {[%emt 00:02:50]} 13. O-O
{[%clk 00:44:08]} {[%emt 00:02:40]} Nf6 {[%clk 00:33:18]} {[%emt 00:00:27]} 14.
Qd3 {[%clk 00:41:16]} {[%emt 00:03:03]} Be7 {[%clk 00:32:44]} {[%emt 00:00:43]}
15. Nd2 {[%clk 00:41:21]} {[%emt 00:00:05]} Qc7 {[%clk 00:28:15]} {[%emt
00:04:39]} 16. Nc4 {[%clk 00:40:33]} {[%emt 00:00:59]} Be6 {[%clk 00:24:36]}
{[%emt 00:03:48]} 17. Ne3 {[%clk 00:40:25]} {[%emt 00:00:18]} O-O {[%clk
00:24:27]} {[%emt 00:00:20]} 18. b3 {[%clk 00:39:33]} {[%emt 00:01:02]} Rfc8
{[%clk 00:23:20]} {[%emt 00:01:16]} 19. Bb2 {[%clk 00:39:41]} {[%emt 00:00:02]}
Qb7 {[%clk 00:23:29]} 20. Rfd1 {[%clk 00:38:57]} {[%emt 00:00:54]} Nd7 {[%clk
00:21:41]} {[%emt 00:01:58]} 21. Ncd5 {[%clk 00:37:32]} {[%emt 00:01:36]} Bf8
{[%clk 00:20:58]} {[%emt 00:00:52]} 22. Nc4 {[%clk 00:36:59]} {[%emt 00:00:44]}
Nc5 {[%clk 00:20:00]} {[%emt 00:01:07]} 23. Qf3 {[%clk 00:34:37]} {[%emt
00:02:31]} f5 {[%clk 00:13:02]} {[%emt 00:07:08]} 24. exf5 {[%clk 00:16:52]}
{[%emt 00:17:56]} e4 {[%clk 00:13:04]} {[%emt 00:00:07]} 25. Nf6+ {[%clk
00:12:14]} {[%emt 00:04:49]} Kh8 {[%clk 00:13:04]} {[%emt 00:00:10]} 26. Qe2
{[%clk 00:10:40]} {[%emt 00:01:44]} Bxc4 {[%clk 00:09:22]} {[%emt 00:03:51]} 27.
Qxc4 {[%clk 00:08:56]} {[%emt 00:01:55]} gxf6 {[%clk 00:09:12]} {[%emt
00:00:20]} 28. Bxf6+ {[%clk 00:09:04]} {[%emt 00:00:02]} Bg7 {[%clk 00:04:51]}
{[%emt 00:04:30]} 29. Qd4 {[%clk 00:07:34]} {[%emt 00:01:40]} Bxf6 {[%clk
00:03:22]} {[%emt 00:01:39]} 30. Qxf6+ {[%clk 00:07:42]} {[%emt 00:00:02]} Qg7
{[%clk 00:03:30]} {[%emt 00:00:02]} 31. Qxd6 {[%clk 00:07:44]} {[%emt
00:00:09]} Nd3 {[%clk 00:02:27]} {[%emt 00:01:13]} 32. Rf1 {[%clk 00:04:09]}
{[%emt 00:03:45]} Rf8 {[%clk 00:02:11]} {[%emt 00:00:26]} 33. Qd5 {[%clk
00:02:32]} {[%emt 00:01:47]} Rfe8 {[%clk 00:02:20]} 34. g3 {[%clk 00:02:03]}
{[%emt 00:00:39]} Rad8 {[%clk 00:02:20]} {[%emt 00:00:09]} 35. Qc6 {[%clk
00:02:04]} {[%emt 00:00:09]} a5 {[%clk 00:00:59]} {[%emt 00:01:31]} 36. a3
{[%clk 00:02:04]} {[%emt 00:00:11]} Rc8 {[%clk 00:01:03]} {[%emt 00:00:06]} 37.
Qd5 {[%clk 00:02:06]} {[%emt 00:00:08]} Rc2 {[%clk 00:00:59]} {[%emt 00:00:13]}
38. Rad1 {[%clk 00:01:37]} {[%emt 00:00:39]} Re2 {[%clk 00:00:51]} {[%emt
00:00:19]} 39. Qxa5 {[%clk 00:01:22]} {[%emt 00:00:25]} Rf8 {[%clk 00:00:44]}
{[%emt 00:00:16]} 40. Qd5 {[%clk 00:00:40]} {[%emt 00:00:52]} Qf6 {[%clk
00:00:44]} {[%emt 00:00:10]} 41. Qe6 {[%clk 00:00:18]} {[%emt 00:00:32]} Qxf5
{[%clk 00:00:34]} {[%emt 00:00:21]} 42. Qxh6+ {[%clk 00:00:26]} {[%emt
00:00:02]} Kg8 {[%clk 00:00:37]} {[%emt 00:00:06]} 43. Qe3 {[%clk 00:00:32]}
{[%emt 00:00:05]} Rxe3 {[%clk 00:00:34]} {[%emt 00:00:13]} 44. fxe3 {[%clk
00:00:40]} {[%emt 00:00:01]} Qe6 {[%clk 00:00:36]} {[%emt 00:00:08]} 0-1

[Event "World Women Teams Championship"]
[Site "Sitges, Spain"]
[Date "2021.09.28"]
[Round "3.8"]
[White "Garcia Martin, Marta"]
[Black "Alexieva, Silvia"]
[Result "1-0"]
[TimeControl "40+10"]
[WhiteElo "2097"]
[BlackElo "2277"]

1. e4 {[%clk 00:45:17]} {[%emt 00:00:02]} c5 {[%clk 00:45:16]} {[%emt
00:00:04]} 2. Nc3 {[%clk 00:45:24]} {[%emt 00:00:03]} Nc6 {[%clk 00:44:37]}
{[%emt 00:00:49]} 3. Bb5 {[%clk 00:45:30]} {[%emt 00:00:04]} Nd4 {[%clk
00:43:49]} {[%emt 00:00:58]} 4. Nf3 {[%clk 00:45:36]} {[%emt 00:00:04]} e6
{[%clk 00:43:41]} {[%emt 00:00:17]} 5. O-O {[%clk 00:45:38]} {[%emt 00:00:09]}
a6 {[%clk 00:42:37]} {[%emt 00:01:15]} 6. Bd3 {[%clk 00:45:42]} {[%emt
00:00:05]} Ne7 {[%clk 00:41:12]} {[%emt 00:01:35]} 7. Nxd4 {[%clk 00:45:45]}
{[%emt 00:00:07]} cxd4 {[%clk 00:41:20]} {[%emt 00:00:02]} 8. Ne2 {[%clk
00:45:53]} {[%emt 00:00:02]} Qb6 {[%clk 00:39:21]} {[%emt 00:02:09]} 9. c3
{[%clk 00:45:24]} {[%emt 00:00:40]} Nc6 {[%clk 00:38:38]} {[%emt 00:00:51]} 10.
Qa4 {[%clk 00:42:44]} {[%emt 00:02:51]} dxc3 {[%clk 00:30:52]} {[%emt
00:07:56]} 11. dxc3 {[%clk 00:39:52]} {[%emt 00:03:02]} Bc5 {[%clk 00:30:00]}
{[%emt 00:01:01]} 12. b4 {[%clk 00:39:36]} {[%emt 00:00:27]} Be7 {[%clk
00:29:56]} {[%emt 00:00:14]} 13. Bf4 {[%clk 00:37:06]} {[%emt 00:02:40]} f6
{[%clk 00:27:52]} {[%emt 00:02:14]} 14. Be3 {[%clk 00:33:36]} {[%emt 00:03:41]}
Qc7 {[%clk 00:27:23]} {[%emt 00:00:38]} 15. f4 {[%clk 00:33:45]} {[%emt
00:00:01]} b6 {[%clk 00:24:19]} {[%emt 00:03:14]} 16. Rad1 {[%clk 00:32:33]}
{[%emt 00:01:22]} Bb7 {[%clk 00:22:54]} {[%emt 00:01:35]} 17. Qb3 {[%clk
00:31:25]} {[%emt 00:01:19]} Nd8 {[%clk 00:19:03]} {[%emt 00:04:00]} 18. Rd2
{[%clk 00:18:51]} {[%emt 00:12:44]} Rc8 {[%clk 00:14:06]} {[%emt 00:05:07]} 19.
Rfd1 {[%clk 00:18:37]} {[%emt 00:00:24]} Nf7 {[%clk 00:09:30]} {[%emt
00:04:46]} 20. c4 {[%clk 00:05:49]} {[%emt 00:12:58]} O-O {[%clk 00:08:19]}
{[%emt 00:01:20]} 21. Nc3 {[%clk 00:03:06]} {[%emt 00:02:54]} b5 {[%clk
00:03:01]} {[%emt 00:05:28]} 22. c5 {[%clk 00:00:35]} {[%emt 00:02:42]} Bc6
{[%clk 00:03:09]} 23. a4 {[%clk 00:00:36]} {[%emt 00:00:09]} Qb7 {[%clk
00:03:10]} {[%emt 00:00:09]} 24. axb5 {[%clk 00:00:40]} {[%emt 00:00:06]} axb5
{[%clk 00:03:18]} {[%emt 00:00:02]} 25. Ra1 {[%clk 00:00:41]} {[%emt 00:00:09]}
Ra8 {[%emt 00:00:05]} 26. Rda2 Rxa2 {[%clk 00:03:02]} {[%emt 00:00:31]} 27.
Qxa2 {[%clk 00:00:55]} {[%emt 00:00:07]} Rb8 {[%clk 00:02:03]} {[%emt
00:01:09]} 28. Qa6 {[%clk 00:00:38]} {[%emt 00:00:28]} Qxa6 {[%clk 00:00:55]}
{[%emt 00:01:17]} 29. Rxa6 {[%clk 00:00:47]} {[%emt 00:00:02]} Bd8 {[%clk
00:00:58]} {[%emt 00:00:07]} 30. Ne2 {[%clk 00:00:34]} {[%emt 00:00:22]} e5
{[%clk 00:00:53]} {[%emt 00:00:15]} 31. f5 {[%clk 00:00:20]} {[%emt 00:00:25]}
Kf8 {[%clk 00:01:02]} {[%emt 00:00:02]} 32. Nc3 {[%clk 00:00:28]} {[%emt
00:00:01]} Bb7 {[%clk 00:00:49]} {[%emt 00:00:23]} 33. Ra7 {[%clk 00:00:19]}
{[%emt 00:00:19]} Bc6 {[%clk 00:00:55]} {[%emt 00:00:04]} 34. Kf2 {[%clk
00:00:15]} {[%emt 00:00:14]} Ke8 {[%clk 00:00:58]} {[%emt 00:00:07]} 35. g4
{[%clk 00:00:21]} {[%emt 00:00:04]} Be7 {[%clk 00:00:59]} {[%emt 00:00:09]} 36.
Ra6 {[%clk 00:00:14]} {[%emt 00:00:17]} Bd8 {[%clk 00:00:48]} {[%emt 00:00:21]}
37. Ke2 {[%clk 00:00:22]} {[%emt 00:00:03]} h6 {[%clk 00:00:44]} {[%emt
00:00:14]} 38. h4 {[%clk 00:00:29]} {[%emt 00:00:02]} Bb7 {[%clk 00:00:46]}
{[%emt 00:00:08]} 39. Ra7 {[%clk 00:00:35]} {[%emt 00:00:04]} Bc6 {[%clk
00:00:55]} 40. Nd5 {[%clk 00:00:15]} {[%emt 00:00:31]} Rc8 {[%clk 00:00:47]}
{[%emt 00:00:17]} 41. Bc2 {[%clk 00:00:14]} {[%emt 00:00:12]} Rb8 {[%clk
00:00:55]} {[%emt 00:00:01]} 42. Bb3 {[%clk 00:00:19]} {[%emt 00:00:05]} Rb7
{[%clk 00:01:01]} {[%emt 00:00:04]} 43. Rxb7 Bxb7 {[%clk 00:01:10]} 44. Bc2
{[%clk 00:00:14]} {[%emt 00:00:19]} d6 {[%clk 00:01:14]} {[%emt 00:00:06]} 45.
Bd3 {[%clk 00:00:16]} {[%emt 00:00:08]} Bc6 {[%clk 00:01:13]} {[%emt 00:00:12]}
46. Nc3 {[%clk 00:00:21]} {[%emt 00:00:04]} dxc5 {[%clk 00:01:21]} {[%emt
00:00:02]} 47. Bxc5 {[%clk 00:00:24]} {[%emt 00:00:07]} Be7 {[%clk 00:01:20]}
{[%emt 00:00:10]} 48. Bxb5 {[%clk 00:00:14]} {[%emt 00:00:21]} Bxb5+ {[%clk
00:01:28]} {[%emt 00:00:02]} 49. Nxb5 {[%clk 00:00:23]} {[%emt 00:00:01]} Bxc5
50. bxc5 {[%clk 00:00:32]} Kd7 {[%clk 00:01:41]} 51. Kd3 {[%clk 00:00:38]}
{[%emt 00:00:04]} Nd8 {[%clk 00:01:25]} {[%emt 00:00:26]} 52. Kc4 {[%clk
00:00:20]} {[%emt 00:00:28]} Nc6 {[%clk 00:01:34]} 53. Nc3 {[%clk 00:00:14]}
{[%emt 00:00:16]} Kc7 {[%clk 00:01:06]} {[%emt 00:00:38]} 54. Nd5+ {[%clk
00:00:18]} {[%emt 00:00:05]} Kd7 {[%clk 00:01:10]} {[%emt 00:00:07]} 55. Nb6+
{[%clk 00:00:25]} {[%emt 00:00:03]} Ke7 {[%clk 00:01:10]} {[%emt 00:00:09]} 56.
Nd5+ {[%clk 00:00:23]} {[%emt 00:00:12]} Kd7 {[%emt 00:00:10]} 57. Nc3 {[%clk
00:00:19]} {[%emt 00:00:06]} Ke7 {[%clk 00:01:24]} {[%emt 00:00:05]} 58. Kb5
{[%clk 00:00:23]} {[%emt 00:00:06]} Kd7 {[%clk 04:04:45]} {[%emt 00:00:11]} 59.
Kb6 {[%clk 00:00:28]} {[%emt 00:00:04]} Nd4 {[%clk 00:01:31]} {[%emt 00:00:03]}
60. Kb7 {[%clk 00:00:19]} {[%emt 00:00:19]} Nc6 {[%clk 00:01:32]} {[%emt
00:00:09]} 61. Kb6 {[%clk 00:00:20]} {[%emt 00:00:09]} Nd4 {[%clk 00:01:39]}
{[%emt 00:00:02]} 62. Nb5 {[%emt 00:00:37]} Nc6 {[%clk 00:01:25]} {[%emt
00:00:01]} 63. Nd6 {[%clk 00:00:18]} {[%emt 00:00:09]} Nd4 {[%clk 00:01:20]}
{[%emt 00:00:14]} 64. Nc4 {[%clk 00:00:17]} {[%emt 00:00:11]} Nc6 {[%clk
00:01:28]} {[%emt 00:00:02]} 65. Na5 {[%clk 00:00:18]} {[%emt 00:00:10]} Ne7
{[%clk 00:01:01]} {[%emt 00:00:37]} 66. c6+ {[%clk 00:00:26]} {[%emt 00:00:02]}
Kd6 {[%clk 00:01:04]} {[%emt 00:00:06]} 67. Nc4 {[%emt 00:00:17]} Kd5 {[%emt
00:00:07]} 1-0

[Event "World Women Teams Championship"]
[Site "Sitges, Spain"]
[Date "2021.09.28"]
[Round "3.9"]
[White "Harika, Dronavalli"]
[Black "Danielian, Elina"]
[Result "1/2-1/2"]
[TimeControl "40+10"]
[WhiteElo "2450"]
[BlackElo "2358"]

1. e4 {[%clk 00:44:47]} {[%emt 00:00:20]} e6 {[%clk 00:45:16]} {[%emt
00:00:16]} 2. d4 {[%clk 00:44:55]} {[%emt 00:00:02]} d5 {[%clk 00:45:24]}
{[%emt 00:00:02]} 3. e5 {[%clk 00:45:03]} {[%emt 00:00:02]} c5 {[%clk
00:45:25]} {[%emt 00:00:09]} 4. c3 {[%clk 00:45:10]} {[%emt 00:00:03]} Nc6
{[%clk 00:45:29]} {[%emt 00:00:06]} 5. Nf3 {[%clk 00:45:10]} {[%emt 00:00:11]}
Bd7 {[%clk 00:44:00]} {[%emt 00:01:38]} 6. Be2 {[%clk 00:44:23]} {[%emt
00:00:57]} Rc8 {[%emt 00:01:35]} 7. O-O {[%emt 00:06:42]} Nh6 {[%emt 00:05:51]}
8. dxc5 {[%clk 00:38:26]} {[%emt 00:00:36]} Bxc5 {[%emt 00:02:41]} 9. Bxh6
{[%clk 00:35:35]} {[%emt 00:00:29]} gxh6 {[%emt 00:00:17]} 10. Qd2 {[%clk
00:35:04]} {[%emt 00:00:25]} Bf8 {[%emt 00:02:41]} 11. c4 {[%emt 00:02:34]} Bg7
{[%emt 00:03:45]} 12. cxd5 {[%emt 00:02:16]} Nxe5 {[%emt 00:03:12]} 13. Nxe5
{[%clk 00:25:04]} {[%emt 00:00:32]} Bxe5 {[%clk 00:32:13]} {[%emt 00:00:01]} 14.
Nc3 {[%emt 00:06:06]} Qg5 {[%clk 00:26:00]} {[%emt 00:00:19]} 15. f4 {[%clk
00:22:27]} {[%emt 00:02:55]} Bxc3 {[%emt 00:01:05]} 16. Qxc3 {[%emt 00:02:09]}
Rxc3 {[%clk 00:24:18]} {[%emt 00:00:03]} 17. fxg5 {[%emt 00:04:04]} Rc2 {[%clk
00:20:12]} {[%emt 00:00:12]} 18. Bh5 {[%clk 00:21:37]} {[%emt 00:00:05]} O-O
{[%clk 00:19:40]} {[%emt 00:00:41]} 19. gxh6 {[%emt 00:01:25]} exd5 {[%emt
00:01:45]} 20. Rf2 {[%emt 00:01:08]} Rxf2 {[%clk 00:17:07]} {[%emt 00:00:45]}
21. Kxf2 {[%clk 00:19:56]} {[%emt 00:00:02]} Rc8 {[%emt 00:02:43]} 22. Rd1
{[%emt 00:01:25]} Be6 {[%emt 00:05:43]} 23. Ke3 {[%clk 00:12:56]} {[%emt
00:00:09]} Kf8 {[%emt 00:00:29]} 24. Bf3 {[%emt 00:04:33]} Rc5 {[%emt
00:03:34]} 25. b4 {[%emt 00:05:03]} Rc2 {[%clk 00:04:56]} {[%emt 00:00:27]} 26.
Rd2 {[%emt 00:00:39]} Rc3+ {[%emt 00:00:38]} 27. Rd3 {[%emt 00:00:15]} Rc2
{[%emt 00:04:19]} 28. Rd2 {[%clk 00:04:23]} {[%emt 00:00:14]} Rc3+ {[%emt
00:00:06]} 29. Rd3 {[%clk 00:01:43]} {[%emt 00:00:04]} Rc2 30. Rd2 {[%emt
00:03:04]} Rc3+ {[%clk 00:05:03]} 31. Rd3 {[%emt 00:00:18]} 1/2-1/2

[Event "World Women Teams Championship"]
[Site "Sitges, Spain"]
[Date "2021.09.28"]
[Round "3.10"]
[White "Mkrtchian, Lilit"]
[Black "Vaishali, R"]
[Result "1-0"]
[TimeControl "40+10"]
[WhiteElo "2306"]
[BlackElo "2149"]

1. c4 {[%clk 00:45:11]} {[%emt 00:00:08]} e5 {[%clk 00:44:55]} {[%emt
00:00:26]} 2. Nc3 {[%clk 00:45:07]} {[%emt 00:00:13]} Nc6 {[%clk 00:45:00]}
{[%emt 00:00:06]} 3. Nf3 {[%clk 00:45:00]} {[%emt 00:00:17]} f5 {[%clk
00:45:02]} {[%emt 00:00:08]} 4. g3 {[%clk 00:40:04]} {[%emt 00:05:07]} Nf6
{[%clk 00:44:29]} {[%emt 00:00:42]} 5. Bg2 {[%clk 00:38:39]} {[%emt 00:01:35]}
Bb4 {[%clk 00:41:36]} {[%emt 00:03:03]} 6. Nd5 {[%clk 00:36:11]} {[%emt
00:02:38]} e4 {[%clk 00:40:09]} {[%emt 00:01:37]} 7. Nh4 {[%clk 00:35:18]}
{[%emt 00:01:02]} d6 {[%clk 00:31:55]} {[%emt 00:08:25]} 8. Bh3 {[%clk
00:33:46]} {[%emt 00:01:42]} g5 {[%clk 00:26:50]} {[%emt 00:05:15]} 9. Qa4
{[%clk 00:22:44]} {[%emt 00:11:11]} gxh4 {[%clk 00:20:44]} {[%emt 00:06:16]} 10.
Nxb4 {[%clk 00:22:11]} {[%emt 00:00:42]} Bd7 {[%clk 00:20:20]} {[%emt
00:00:35]} 11. Nxc6 {[%clk 00:20:46]} {[%emt 00:01:35]} Bxc6 {[%clk 00:19:49]}
{[%emt 00:00:42]} 12. Qa5 {[%clk 00:17:20]} {[%emt 00:03:36]} Qe7 {[%clk
00:14:17]} {[%emt 00:05:42]} 13. Bxf5 {[%clk 00:12:17]} {[%emt 00:05:13]} Rg8
{[%clk 00:13:46]} {[%emt 00:00:41]} 14. Qc3 {[%clk 00:07:08]} {[%emt 00:05:19]}
d5 {[%clk 00:07:00]} {[%emt 00:06:56]} 15. b3 {[%clk 00:06:36]} {[%emt
00:00:42]} Rg5 {[%clk 00:02:58]} {[%emt 00:04:12]} 16. Bh3 {[%clk 00:04:17]}
{[%emt 00:02:28]} Rd8 {[%clk 00:01:03]} {[%emt 00:02:06]} 17. cxd5 {[%clk
00:03:25]} {[%emt 00:01:03]} Rgxd5 {[%clk 00:00:48]} {[%emt 00:00:24]} 18. Bb2
{[%clk 00:03:04]} {[%emt 00:00:31]} Kf7 {[%clk 00:00:32]} {[%emt 00:00:27]} 19.
Rd1 {[%clk 00:02:06]} {[%emt 00:01:07]} Bb5 {[%clk 00:00:24]} {[%emt 00:00:19]}
20. Qe3 {[%clk 00:01:36]} {[%emt 00:00:40]} Bd7 {[%clk 00:00:30]} {[%emt
00:00:13]} 21. Bg2 {[%clk 00:00:36]} {[%emt 00:01:21]} h3 {[%clk 00:00:32]}
{[%emt 00:00:08]} 22. Bf1 {[%clk 00:00:21]} {[%emt 00:00:25]} Bf5 {[%clk
00:00:23]} {[%emt 00:00:19]} 23. Qh6 {[%clk 00:00:17]} {[%emt 00:00:14]} e3
{[%clk 00:00:15]} {[%emt 00:00:18]} 24. fxe3 {[%clk 00:00:15]} {[%emt
00:00:13]} R8d6 {[%clk 00:00:13]} {[%emt 00:00:11]} 25. Bxh3 {[%clk 00:00:18]}
{[%emt 00:00:07]} Qe4 {[%clk 00:00:13]} {[%emt 00:00:10]} 26. O-O {[%clk
00:00:23]} {[%emt 00:00:06]} c6 {[%clk 00:00:11]} {[%emt 00:00:12]} 27. d3
{[%clk 00:00:14]} {[%emt 00:00:19]} Qe6 {[%clk 00:00:12]} {[%emt 00:00:08]} 28.
Bxf5 {[%clk 00:00:13]} {[%emt 00:00:10]} Rxf5 {[%clk 00:00:19]} {[%emt
00:00:03]} 29. Rxf5 {[%clk 00:00:23]} {[%emt 00:00:02]} Qxf5 {[%clk 00:00:27]}
{[%emt 00:00:01]} 30. Rf1 {[%clk 00:00:31]} 1-0